bitfinex-derivatives/quotes_BTCF0:USTF0_20260113
["timestamp","ask_amount","ask_price","bid_price","bid_amount"]
[1768316885919,0.010818,92516.0,92498.0,0.09736]
[1768316886529,0.010818,92514.0,92498.0,0.19434269]
[1768316886726,0.010819,92510.0,92497.0,0.00010879]
[1768316886917,0.010818,92517.0,92498.0,0.09736]
[1768316887118,0.010818,92520.0,92498.0,0.09736]
[1768316887421,0.010818,92518.0,92498.0,0.09736]
[1768316887823,0.010818,92518.0,92498.0,0.07936]
[1768316888022,0.1460142,92520.0,92499.0,0.01082]
[1768316888526,0.1460142,92520.0,92501.0,0.01082]
[1768316888726,0.09736,92522.0,92500.0,0.01082]
[1768316889022,0.09736,92526.0,92508.0,0.010819]
[1768316889225,0.09736,92526.0,92499.0,0.09092378]
[1768316889226,0.09736,92526.0,92505.0,0.10780169]
[1768316889529,0.09281039,92522.0,92498.0,0.07936]
[1768316889827,0.09281039,92522.0,92498.0,0.17634269]
[1768316890327,0.09281039,92522.0,92508.0,0.10780169]
[1768316890624,0.09281039,92522.0,92499.0,0.09092378]
[1768316890625,0.010818,92521.0,92499.0,0.19872647]
[1768316890827,0.1568322,92520.0,92499.0,0.01082]
[1768316891230,0.108177,92526.0,92504.0,0.01082]
[1768316891432,0.09736,92526.0,92499.0,0.09698269]
[1768316891728,0.010817,92523.0,92500.0,0.10780269]
[1768316892031,0.010817,92523.0,92502.0,0.01082]
[1768316892415,0.09281039,92523.0,92498.0,0.09736]
[1768316892622,0.010818,92520.0,92500.0,0.01082]
[1768316892832,0.09736,92526.0,92502.0,0.09698269]
[1768316893130,0.010816,92533.0,92508.0,0.09698269]
[1768316893330,0.010817,92530.0,92508.0,0.10780169]
[1768316893528,0.010816,92533.0,92508.0,0.09698269]
[1768316893721,0.010817,92530.0,92510.0,0.09698269]
[1768316893921,0.09736,92532.0,92510.0,0.09698269]
[1768316894330,0.010817,92530.0,92510.0,0.09698269]
[1768316894629,0.09281039,92538.0,92512.0,0.010819]
[1768316894932,0.09736,92537.0,92512.0,0.010819]
[1768316895130,0.010816,92533.0,92514.0,0.010818]
[1768316895426,0.09736,92557.0,92534.0,0.09698269]
[1768316895728,0.010814,92553.0,92535.0,0.010816]
[1768316896123,0.09736,92556.0,92534.0,0.09698269]
[1768316896331,0.010814,92553.0,92534.0,0.09698269]
[1768316896526,0.010814,92553.0,92508.0,0.010819]
[1768316896527,0.010818,92514.0,92504.0,0.13574187]
[1768316896732,0.10357891,92525.0,92499.0,0.09736]
[1768316896928,0.010817,92523.0,92502.0,0.09533623]
[1768316897128,0.010817,92523.0,92503.0,0.01082]
[1768316897432,0.09736,92528.0,92502.0,0.09533623]
[1768316897630,0.09736,92528.0,92504.0,0.09533623]
[1768316897834,0.108177,92528.0,92506.0,0.010819]
[1768316898232,0.108177,92528.0,92504.0,0.09533623]
[1768316898233,0.09736,92528.0,92504.0,0.09533623]
[1768316898426,0.09276191,92534.0,92506.0,0.10615523]
[1768316898427,0.19012191,92534.0,92506.0,0.10615523]
[1768316898924,0.010817,92526.0,92506.0,0.09533623]
[1768316899126,0.010817,92524.0,92506.0,0.09533623]
[1768316899323,0.19012191,92534.0,92506.0,0.09533623]
[1768316899324,0.1460142,92530.0,92507.0,0.010819]
[1768316899528,0.010817,92527.0,92506.0,0.09533623]
[1768316899730,0.1568312,92530.0,92506.0,0.09533623]
[1768316899936,0.19012191,92534.0,92508.0,0.10615523]
[1768316900133,0.09736,92550.0,92519.0,0.09533623]
[1768316900328,0.09276191,92549.0,92521.0,0.09533623]
[1768316900523,0.010816,92539.0,92521.0,0.09533623]
[1768316900737,0.010816,92536.0,92521.0,0.08833623]
[1768316901237,0.010816,92539.0,92521.0,0.08833623]
[1768316901431,0.010816,92537.0,92521.0,0.08833623]
[1768316902136,0.010816,92534.0,92515.0,0.09736]
[1768316902333,0.1460142,92530.0,92498.0,0.09565344]
[1768316902537,0.010817,92527.0,92508.0,0.010819]
[1768316902929,0.010817,92530.0,92510.0,0.010819]
[1768316903130,0.010817,92528.0,92510.0,0.108179]
[1768316903428,0.010816,92531.0,92512.0,0.010819]
[1768316903835,0.09276191,92537.0,92510.0,0.09736]
[1768316904140,0.010816,92531.0,92514.0,0.010818]
[1768316904336,0.010816,92531.0,92513.0,0.010818]
[1768316904526,0.28192558,92545.0,92513.0,0.19098967]
[1768316904732,0.010816,92538.0,92519.0,0.10615423]
[1768316904930,0.010816,92534.0,92519.0,0.09533623]
[1768316905131,0.09276191,92543.0,92516.0,0.010818]
[1768316905335,0.010816,92536.0,92516.0,0.010818]
[1768316905533,0.010816,92536.0,92516.0,0.10615423]
[1768316906230,0.010816,92538.0,92518.0,0.09533623]
[1768316906436,0.010814,92549.0,92522.0,0.09533623]
[1768316906732,0.010814,92553.0,92534.0,0.09533623]
[1768316906928,0.010814,92551.0,92534.0,0.09533623]
[1768316907122,0.010815,92546.0,92524.0,0.010817]
[1768316907334,0.09276191,92548.0,92523.0,0.09736]
[1768316907526,0.010815,92542.0,92523.0,0.09736]
[1768316907723,0.1460142,92540.0,92516.0,0.09533623]
[1768316907933,0.010816,92533.0,92516.0,0.19269623]
[1768316908127,0.1460142,92540.0,92518.0,0.010818]
[1768316908433,0.09736,92543.0,92517.0,0.09565344]
[1768316908737,0.09736,92556.0,92530.0,0.010816]
[1768316908922,0.09736,92556.0,92527.0,0.09736]
[1768316908923,0.010815,92539.0,92527.0,0.09736]
[1768316909129,0.010815,92542.0,92527.0,0.09736]
[1768316909434,0.1460142,92540.0,92522.0,0.010817]
[1768316909738,0.09276191,92547.0,92515.0,0.19301344]
[1768316909929,0.09276191,92547.0,92518.0,0.010818]
[1768316910233,0.10357691,92545.0,92517.0,0.010818]
[1768316910421,0.10357691,92545.0,92515.0,0.19301344]
[1768316910422,0.09276191,92539.0,92513.0,0.09533623]
[1768316910728,0.09276191,92550.0,92515.0,0.09565344]
[1768316910927,0.010815,92546.0,92531.0,0.09533623]
[1768316911226,0.09736,92547.0,92531.0,0.09533623]
[1768316911423,0.09736,92547.0,92532.0,0.010816]
[1768316911635,0.23877611,92560.0,92534.0,0.010816]
[1768316911834,0.09736,92559.0,92536.0,0.09533623]
[1768316912026,0.010813,92560.0,92539.0,0.09533623]
[1768316912228,0.010814,92556.0,92539.0,0.09533623]
[1768316912434,0.010814,92551.0,92532.0,0.09533623]
[1768316912635,0.1460142,92560.0,92532.0,0.09533623]
[1768316912836,0.010814,92549.0,92532.0,0.09533623]
[1768316913035,0.010815,92546.0,92532.0,0.09533623]
[1768316913236,0.010814,92549.0,92532.0,0.09533623]
[1768316913435,0.010814,92550.0,92532.0,0.09533623]
[1768316914141,0.010814,92553.0,92532.0,0.10615223]
[1768316914736,0.010814,92553.0,92534.0,0.010816]
[1768316915643,0.010814,92548.0,92532.0,0.09533623]
[1768316915843,0.23913663,92550.0,92531.0,0.09736]
[1768316916037,0.010815,92542.0,92531.0,0.09736]
[1768316916242,0.09312243,92548.0,92531.0,0.09736]
[1768316916633,0.010815,92544.0,92521.0,0.19692]
[1768316916832,0.010815,92544.0,92527.0,0.010817]
[1768316917045,0.010815,92544.0,92524.0,0.010817]
[1768316917339,0.010815,92544.0,92528.0,0.010817]
[1768316917744,0.010816,92539.0,92523.0,0.09430504]
[1768316917942,0.010815,92542.0,92523.0,0.10512204]
[1768316918338,0.010815,92545.0,92526.0,0.010817]
[1768316918537,0.1460142,92550.0,92526.0,0.010817]
[1768316918839,0.09312243,92549.0,92525.0,0.09430504]
[1768316919242,0.010814,92555.0,92539.0,0.09482513]
[1768316919446,0.010814,92555.0,92538.0,0.09430504]
[1768316919843,0.1460142,92560.0,92538.0,0.09430504]
[1768316920049,0.010814,92550.0,92538.0,0.09430504]
[1768316920346,0.010814,92548.0,92538.0,0.09430504]
[1768316920545,0.010815,92540.0,92533.0,0.09732]
[1768316920744,0.010815,92540.0,92528.0,0.09732]
[1768316920940,0.09312243,92537.0,92510.0,0.13574187]
[1768316921144,0.23913885,92538.0,92498.0,0.09430504]
[1768316921145,0.1460142,92520.0,92498.0,0.19162504]
[1768316921644,0.010818,92519.0,92499.0,0.10512504]
[1768316921842,0.010818,92517.0,92499.0,0.10512504]
[1768316922051,0.010818,92520.0,92499.0,0.10512504]
[1768316923148,0.09312243,92530.0,92499.0,0.09430504]
[1768316923353,0.010817,92526.0,92508.0,0.09430504]
[1768316923554,0.010817,92530.0,92510.0,0.010819]
[1768316923745,0.108136,92531.0,92510.0,0.010819]
[1768316923945,0.108136,92531.0,92510.0,0.10512404]
[1768316924146,0.09732,92531.0,92510.0,0.09430504]
[1768316924450,0.09732,92531.0,92502.0,0.08230504]
[1768316924451,0.09312243,92527.0,92502.0,0.08230504]
[1768316924753,0.010818,92517.0,92502.0,0.08230504]
[1768316924954,0.010818,92522.0,92502.0,0.08230504]
[1768316926544,0.010818,92522.0,92502.0,0.09312504]
[1768316927155,0.1460142,92520.0,92501.0,0.09736]
[1768316927352,0.010818,92519.0,92501.0,0.09736]
[1768316927747,0.09312243,92548.0,92513.0,0.09482513]
[1768316927942,0.20129743,92547.0,92517.0,0.10512304]
[1768316928152,0.010815,92545.0,92520.0,0.09430504]
[1768316928351,0.108175,92546.0,92528.0,0.10512204]
[1768316928553,0.010815,92546.0,92528.0,0.10512204]
[1768316929451,0.09736,92547.0,92528.0,0.09430504]
[1768316929651,0.23913663,92540.0,92516.0,0.010818]
[1768316929956,0.23913663,92540.0,92513.0,0.09430504]
[1768316930158,0.23913663,92540.0,92516.0,0.010818]
[1768316930652,0.1460142,92530.0,92510.0,0.010819]
[1768316930850,0.010817,92526.0,92505.0,0.09430504]
[1768316931158,0.1460142,92530.0,92513.0,0.010818]
[1768316931159,0.010817,92529.0,92513.0,0.010818]
[1768316931853,0.09736,92533.0,92507.0,0.010819]
[1768316932255,0.09736,92533.0,92505.0,0.07030504]
[1768316934060,0.010817,92527.0,92508.0,0.010819]
[1768316934258,0.09736,92533.0,92506.0,0.09430504]
[1768316934446,0.09736,92533.0,92516.0,0.09430504]
[1768316934653,0.010816,92534.0,92518.0,0.09430504]
[1768316935049,0.09736,92538.0,92518.0,0.09430504]
[1768316935355,0.09312465,92547.0,92521.0,0.09430504]
[1768316935356,0.010816,92535.0,92521.0,0.09430504]
[1768316936049,0.09736,92541.0,92515.0,0.09736]
[1768316936050,0.010817,92528.0,92515.0,0.09736]
[1768316936257,0.010817,92528.0,92513.0,0.09430504]
[1768316936454,0.1460142,92530.0,92513.0,0.09736]
[1768316936652,0.010817,92525.0,92513.0,0.09736]
[1768316936856,0.1460142,92530.0,92513.0,0.09736]
[1768316937460,0.010817,92529.0,92513.0,0.09736]
[1768316937765,0.010817,92527.0,92513.0,0.09736]
[1768316937947,0.1460142,92530.0,92513.0,0.108178]
[1768316938457,0.010817,92530.0,92513.0,0.09736]
[1768316938858,0.010817,92528.0,92513.0,0.09736]
[1768316939261,0.010817,92531.0,92513.0,0.09736]
[1768316939466,0.010817,92524.0,92506.0,0.09736]
[1768316939764,0.1460142,92530.0,92506.0,0.108179]
[1768316939961,0.010817,92526.0,92506.0,0.086179]
[1768316940264,0.1460142,92520.0,92506.0,0.086179]
[1768316940562,0.09312465,92515.0,92497.0,0.00010879]
[1768316940867,0.1460142,92510.0,92497.0,0.00010879]
[1768316941359,0.09736,92514.0,92497.0,0.00010879]
[1768316941360,0.108178,92514.0,92497.0,0.00010879]
[1768316941562,0.09736,92514.0,92497.0,0.00010879]
[1768316941760,0.09312243,92516.0,92498.0,0.01082]
[1768316941761,0.09736,92516.0,92498.0,0.01082]
[1768316941957,0.010818,92521.0,92497.0,0.09441383]
[1768316942163,0.010817,92525.0,92506.0,0.10512404]
[1768316942554,0.010818,92521.0,92506.0,0.09430504]
[1768316942963,0.010817,92524.0,92506.0,0.09430504]
[1768316943160,0.010819,92514.0,92506.0,0.09430504]
[1768316943365,0.09736,92528.0,92503.0,0.10512504]
[1768316943566,0.010818,92515.0,92503.0,0.09430504]
[1768316943767,0.010818,92515.0,92498.0,0.09736]
[1768316944164,0.010818,92514.0,92498.0,0.19166504]
[1768316944364,0.09312243,92521.0,92498.0,0.09736]
[1768316944562,0.01082,92505.0,92498.0,0.09736]
[1768316944756,0.01082,92504.0,92497.0,0.00010879]
[1768316945067,0.09736,92515.0,92485.0,0.09433705]
[1768316945068,0.10351697,92511.0,92485.0,0.09433705]
[1768316945458,0.09269797,92511.0,92485.0,0.09433705]
[1768316945658,0.010821,92495.0,92485.0,0.09433705]
[1768316945857,0.010821,92496.0,92485.0,0.09433705]
[1768316946158,0.01092979,92494.0,92485.0,0.09433705]
[1768316946360,0.010821,92491.0,92481.0,0.09736]
[1768316946555,0.01092979,92494.0,92481.0,0.09736]
[1768316946861,0.00010879,92494.0,92474.0,0.09736]
[1768316947168,0.010821,92490.0,92474.0,0.09736]
[1768316947559,0.00010879,92494.0,92471.0,0.09433732]
[1768316947755,0.00010879,92494.0,92453.0,0.00540815]
[1768316947756,0.09269797,92491.0,92461.0,0.010825]
[1768316947954,0.010822,92486.0,92465.0,0.010824]
[1768316948261,0.010822,92484.0,92465.0,0.010824]
[1768316948461,0.010821,92490.0,92469.0,0.010824]
[1768316948667,0.108181,92490.0,92469.0,0.010824]
[1768316948863,0.00010879,92494.0,92459.0,0.09736]
[1768316949072,0.00010879,92494.0,92470.0,0.10813791]
[1768316949367,0.010822,92487.0,92471.0,0.09736]
[1768316949566,0.09269797,92492.0,92472.0,0.09736]
[1768316952266,0.010822,92487.0,92464.0,0.046]
[1768316952470,0.004,92490.0,92468.0,0.010824]
[1768316953371,0.004,92490.0,92470.0,0.010823]
[1768316953572,0.10351897,92492.0,92470.0,0.010823]
[1768316953767,0.10351897,92492.0,92471.0,0.046]
[1768316953768,0.10136,92491.0,92471.0,0.046]
[1768316954268,0.010822,92483.0,92471.0,0.046]
[1768316954473,0.10351997,92486.0,92470.0,0.046]
[1768316954674,0.010822,92484.0,92470.0,0.046]
[1768316955170,0.010822,92484.0,92465.0,0.010824]
[1768316955362,0.010822,92484.0,92471.0,0.033]
[1768316955562,0.09269797,92486.0,92471.0,0.033]
[1768316956258,0.010823,92478.0,92471.0,0.033]
[1768316956463,0.010822,92481.0,92471.0,0.033]
[1768316956665,0.10632636,92484.0,92471.0,0.033]
[1768316956864,0.011822,92484.0,92470.0,0.038]
[1768316957478,0.011822,92484.0,92468.0,0.010824]
[1768316957671,0.001,92481.0,92471.0,0.038]
[1768316958376,0.010822,92480.0,92470.0,0.038]
[1768316958676,0.010822,92483.0,92470.0,0.038]
[1768316958876,0.010822,92481.0,92470.0,0.038]
[1768316959773,0.09650436,92484.0,92470.0,0.038]
[1768316959973,0.010823,92478.0,92461.0,0.010825]
[1768316960172,0.010823,92478.0,92463.0,0.010824]
[1768316960473,0.0974,92479.0,92463.0,0.010824]
[1768316960776,0.010823,92477.0,92470.0,0.025]
[1768316960978,0.0974,92479.0,92456.0,0.09238359]
[1768316960979,0.010823,92474.0,92456.0,0.09238359]
[1768316961181,0.00010879,92473.0,92449.0,0.0974]
[1768316961376,0.00010879,92473.0,92455.0,0.010825]
[1768316961377,0.010823,92472.0,92455.0,0.010825]
[1768316961579,0.00010879,92473.0,92463.0,0.033]
[1768316961977,0.01093179,92473.0,92463.0,0.033]
[1768316962277,0.010823,92471.0,92463.0,0.033]
[1768316962475,0.010823,92472.0,92463.0,0.033]
[1768316962882,0.00010879,92473.0,92463.0,0.033]
[1768316963075,0.00010879,92473.0,92456.0,0.09238359]
[1768316963283,0.010824,92471.0,92456.0,0.08238359]
[1768316963781,0.010824,92469.0,92456.0,0.08238359]
[1768316963988,0.010824,92468.0,92463.0,0.004]
[1768316964171,0.010825,92455.0,92453.0,1.5e-07]
[1768316964486,0.11761315,92473.0,92453.0,1.5e-07]
[1768316964672,0.010827,92442.0,92436.0,0.09641652]
[1768316964869,0.010825,92457.0,92435.0,0.0974]
[1768316965075,0.10632936,92457.0,92435.0,0.0974]
[1768316965477,0.010825,92459.0,92441.0,0.09238359]
[1768316965670,0.01091553,92458.0,92444.0,0.09238359]
[1768316966483,0.010825,92455.0,92444.0,0.09238359]
[1768316966671,0.010825,92455.0,92437.0,0.010827]
[1768316966875,9.053e-05,92458.0,92436.0,0.18880011]
[1768316967075,9.053e-05,92458.0,92437.0,0.10321059]
[1768316967076,0.01091553,92458.0,92437.0,0.10321059]
[1768316967271,9.053e-05,92458.0,92437.0,0.09238359]
[1768316967478,0.010825,92457.0,92437.0,0.09238359]
[1768316967682,0.014,92455.0,92444.0,0.004]
[1768316968576,0.010825,92454.0,92444.0,0.004]
[1768316969091,0.014,92455.0,92444.0,0.004]
[1768316969379,0.01591553,92458.0,92438.0,0.10321059]
[1768316969881,0.00509053,92458.0,92438.0,0.09238359]
[1768316970077,0.010826,92452.0,92438.0,0.09238359]
[1768316970481,0.010826,92450.0,92438.0,0.09238359]
[1768316970685,0.010826,92450.0,92434.0,0.010828]
[1768316970686,9.053e-05,92458.0,92453.0,0.010826]
[1768316970875,0.010824,92471.0,92459.0,0.09238359]
[1768316971185,0.010823,92474.0,92459.0,0.07538359]
[1768316971481,0.0974,92477.0,92451.0,0.09641652]
[1768316971681,0.0974,92477.0,92458.0,0.010825]
[1768316971884,0.010823,92475.0,92458.0,0.010825]
[1768316972085,0.010823,92473.0,92455.0,0.010825]
[1768316972286,0.010823,92473.0,92451.0,0.09641652]
[1768316972484,0.010823,92471.0,92451.0,0.09641652]
[1768316972682,0.010824,92463.0,92442.0,0.09641652]
[1768316972983,0.010826,92447.0,92429.0,0.09641652]
[1768316973172,0.010826,92447.0,92426.0,0.09238359]
[1768316973377,0.010826,92447.0,92430.0,0.010828]
[1768316973574,0.010826,92451.0,92426.0,0.09238359]
[1768316974176,0.09753185,92462.0,92428.0,0.09641652]
[1768316974177,0.09550436,92455.0,92428.0,0.09641652]
[1768316974380,0.00013185,92462.0,92436.0,0.09238359]
[1768316974586,0.010825,92458.0,92440.0,0.010827]
[1768316974787,0.108225,92461.0,92442.0,0.010827]
[1768316975290,0.108225,92461.0,92427.0,0.010829]
[1768316975291,0.18782012,92452.0,92427.0,0.010829]
[1768316975593,0.09129528,92448.0,92426.0,0.010829]
[1768316975793,0.010829,92423.0,92421.0,0.09964448]
[1768316975995,0.09652484,92417.0,92393.0,0.00253537]
[1768316976291,0.010831,92408.0,92393.0,0.00253537]
[1768316976489,0.010832,92398.0,92393.0,3.7e-07]
[1768316976790,0.09129528,92413.0,92393.0,3.7e-07]
[1768316976791,0.010832,92403.0,92393.0,3.7e-07]
[1768316976991,0.00011786,92402.0,92393.0,3.7e-07]
[1768316977778,0.007,92398.0,92393.0,0.00600037]
[1768316977977,0.09829528,92398.0,92385.0,0.00238135]
[1768316978686,0.09829528,92398.0,92372.0,0.08865535]
[1768316979081,0.09129528,92398.0,92389.0,0.010833]
[1768316979383,0.01083,92417.0,92393.0,0.02]
[1768316979792,0.09744,92416.0,92395.0,0.010832]
[1768316980394,0.00011394,92415.0,92392.0,0.010833]
[1768316980787,0.00011394,92415.0,92393.0,0.016]
[1768316981096,0.010831,92411.0,92393.0,0.016]
[1768316981284,0.09129528,92437.0,92405.0,0.09964448]
[1768316981489,0.09129528,92437.0,92407.0,0.09964448]
[1768316981490,0.010828,92429.0,92407.0,0.09964448]
[1768316981692,0.01083,92415.0,92405.0,0.09744]
[1768316981885,0.010828,92434.0,92393.0,0.016]
[1768316981886,0.01083,92412.0,92393.0,0.016]
[1768316982084,0.09129528,92420.0,92399.0,0.09744]
[1768316982085,0.01083,92416.0,92399.0,0.09744]
[1768316982288,0.005,92415.0,92399.0,0.09744]
[1768316982484,0.005,92415.0,92400.0,0.010832]
[1768316982690,0.005,92415.0,92399.0,0.09744]
[1768316983089,0.005,92416.0,92399.0,0.11944]
[1768316983287,0.005,92416.0,92400.0,0.010832]
[1768316983496,0.09744,92426.0,92406.0,0.010831]
[1768316983683,0.09744,92427.0,92402.0,0.09964448]
[1768316983888,0.09744,92427.0,92402.0,0.2072086]
[1768316984090,0.005,92415.0,92402.0,0.2072086]
[1768316984290,0.09744,92427.0,92402.0,0.2072086]
[1768316984487,0.09129528,92428.0,92402.0,0.2072086]
[1768316984897,0.10212328,92428.0,92402.0,0.2072096]
[1768316985588,0.003,92427.0,92406.0,0.010831]
[1768316985792,0.003,92427.0,92403.0,0.1963776]
[1768316986099,0.003,92427.0,92408.0,0.010831]
[1768316986498,0.003,92427.0,92403.0,0.1932086]
[1768316986999,0.003,92428.0,92408.0,0.010831]
[1768316987196,0.010829,92427.0,92403.0,0.1932086]
[1768316987392,0.003,92428.0,92410.0,0.01083]
[1768316988098,0.003,92428.0,92404.0,0.09673312]
[1768316988296,0.003,92428.0,92411.0,0.01083]
[1768316988496,0.09129528,92432.0,92410.0,0.01083]
[1768316988698,0.003,92427.0,92410.0,0.01083]
[1768316989097,0.003,92427.0,92412.0,0.01083]
[1768316989293,0.09129528,92432.0,92404.0,0.09673312]
[1768316989501,0.003,92428.0,92412.0,0.01083]
[1768316989709,0.003,92428.0,92411.0,0.11573312]
[1768316989899,0.003,92428.0,92416.0,0.01083]
[1768316990195,0.09744,92434.0,92416.0,0.01083]
[1768316990591,0.09744,92442.0,92421.0,0.010829]
[1768316991090,0.10212228,92440.0,92420.0,0.010829]
[1768316991800,0.002,92428.0,92420.0,0.010829]
[1768316992002,0.09129528,92437.0,92420.0,0.010829]
[1768316992392,0.010828,92436.0,92416.0,0.02183]
[1768316992699,0.010828,92436.0,92420.0,0.008]
[1768316993198,0.09129528,92437.0,92420.0,0.008]
[1768316993389,0.09129528,92435.0,92420.0,0.008]
[1768316993595,0.09129528,92428.0,92420.0,0.008]
[1768316993990,0.09129528,92428.0,92413.0,0.01083]
[1768316994197,0.09129528,92428.0,92410.0,0.09744]
[1768316994707,0.09129528,92428.0,92420.0,0.012]
[1768316995007,0.09129528,92436.0,92421.0,0.010829]
[1768316995201,0.010828,92434.0,92420.0,0.012]
[1768316995403,0.09129528,92434.0,92410.0,0.09744]
[1768316995700,0.012829,92428.0,92412.0,0.01083]
[1768316995900,0.010829,92427.0,92412.0,0.01083]
[1768316996305,0.010829,92427.0,92420.0,0.013]
[1768316996495,0.09129528,92432.0,92410.0,0.09744]
[1768316996695,0.09129528,92429.0,92411.0,0.01083]
[1768316996907,0.010829,92424.0,92410.0,0.09744]
[1768316998110,0.010829,92424.0,92412.0,0.005]
[1768316998494,0.002,92427.0,92418.0,0.01083]
[1768316998698,0.010828,92434.0,92416.0,0.01083]
[1768316998900,0.010828,92431.0,92415.0,0.01083]
[1768316999099,0.010828,92432.0,92416.0,0.01083]
[1768316999408,0.09129528,92436.0,92413.0,0.01083]
[1768316999598,0.09129528,92436.0,92415.0,0.01083]
[1768316999799,0.09129528,92436.0,92410.0,0.19417312]
[1768316999800,0.002,92424.0,92410.0,0.20017312]
[1768316999995,0.010828,92431.0,92412.0,0.09673312]
[1768317000202,0.010828,92429.0,92412.0,0.10756312]
[1768317000404,0.010828,92432.0,92414.0,0.01083]
[1768317000805,0.010828,92431.0,92414.0,0.01083]
[1768317001201,0.09129528,92436.0,92413.0,0.002]
[1768317001407,0.09529528,92436.0,92413.0,0.002]
[1768317001712,0.09529528,92436.0,92415.0,0.01083]
[1768317001917,0.09529528,92436.0,92413.0,0.002]
[1768317002103,0.010828,92429.0,92413.0,0.01083]
[1768317002796,0.09129528,92435.0,92413.0,0.01083]
[1768317002797,0.010828,92435.0,92415.0,0.01083]
[1768317003002,0.014828,92436.0,92411.0,0.09673312]
[1768317003202,0.010828,92434.0,92414.0,0.09673312]
[1768317003508,0.010829,92426.0,92414.0,0.09873312]
[1768317003703,0.010828,92429.0,92414.0,0.09873312]
[1768317004309,0.09329528,92431.0,92405.0,0.09964448]
[1768317004507,0.09129528,92424.0,92406.0,0.09744]
[1768317004712,0.010829,92421.0,92407.0,0.09744]
[1768317004907,0.010829,92421.0,92401.0,0.010832]
[1768317004908,0.09374265,92421.0,92401.0,0.010832]
[1768317005108,0.09374265,92421.0,92401.0,0.108272]
[1768317005410,0.010829,92420.0,92401.0,0.09744]
[1768317005614,0.010831,92407.0,92383.0,0.09561874]
[1768317005908,0.09374265,92399.0,92376.0,0.09744]
[1768317006115,0.09374265,92397.0,92375.0,0.09744]
[1768317006507,0.09374265,92395.0,92375.0,0.09744]
[1768317006700,0.09848938,92399.0,92375.0,0.09744]
[1768317006701,0.10457565,92393.0,92375.0,0.09744]
[1768317006903,0.09374265,92393.0,92375.0,0.09744]
[1768317007113,0.10457465,92401.0,92379.0,0.010834]
[1768317007317,0.09374265,92401.0,92383.0,0.010834]
[1768317007613,0.09374265,92401.0,92375.0,0.09744]
[1768317007614,0.09374265,92401.0,92384.0,0.010834]
[1768317007914,0.09374265,92401.0,92375.0,0.19243728]
[1768317008310,0.09374265,92401.0,92380.0,0.010834]
[1768317008513,0.09374265,92399.0,92380.0,0.010834]
[1768317008716,0.09374265,92399.0,92383.0,0.002]
[1768317009519,0.09374265,92399.0,92380.0,0.013834]
[1768317009811,0.09374265,92395.0,92375.0,0.09044]
[1768317010012,0.09374265,92395.0,92376.0,0.010835]
[1768317010212,0.09374265,92395.0,92375.0,0.09044]
[1768317010519,0.010832,92394.0,92375.0,0.09044]
[1768317010909,0.10932138,92396.0,92375.0,0.09044]
[1768317011110,0.10932138,92396.0,92383.0,0.003]
[1768317011310,0.010832,92398.0,92383.0,0.003]
[1768317011817,0.010832,92399.0,92375.0,0.09044]
[1768317012012,0.002,92394.0,92375.0,0.09244]
[1768317012319,0.010833,92393.0,92375.0,0.09244]
[1768317012518,0.10457665,92384.0,92363.0,0.010836]
[1768317012814,0.09374265,92384.0,92369.0,0.09748]
[1768317013003,0.010834,92381.0,92368.0,0.09748]
[1768317013203,0.010834,92381.0,92358.0,0.09499728]
[1768317013204,0.14628277,92380.0,92365.0,0.09748]
[1768317014419,0.09674265,92384.0,92366.0,0.010836]
[1768317014921,0.10757665,92384.0,92365.0,0.09748]
[1768317015118,0.24302542,92380.0,92365.0,0.006]
[1768317015322,0.24302542,92380.0,92366.0,0.010836]
[1768317015517,0.24302542,92380.0,92365.0,0.006]
[1768317015711,0.09123081,92379.0,92365.0,0.006]
[1768317015913,0.09123081,92378.0,92356.0,0.09748]
[1768317016113,0.010835,92369.0,92353.0,0.00541401]
[1768317016313,0.14628277,92370.0,92354.0,0.010837]
[1768317016516,8.1e-07,92374.0,92353.0,0.00541401]
[1768317016718,0.004,92384.0,92359.0,0.18926429]
[1768317016922,0.09748,92382.0,92371.0,0.010835]
[1768317017122,0.004,92384.0,92371.0,0.010835]
[1768317017314,0.004,92384.0,92367.0,0.010836]
[1768317017616,0.40079,92411.0,92361.0,0.09748]
[1768317017617,0.09283172,92402.0,92370.0,0.09788084]
[1768317017821,0.09748,92402.0,92384.0,0.010834]
[1768317018018,0.102749,92427.0,92371.0,0.010835]
[1768317018019,0.01083,92419.0,92381.0,0.09138345]
[1768317018217,0.09748,92424.0,92396.0,0.09788084]
[1768317018515,0.010829,92423.0,92402.0,0.010831]
[1768317018715,0.18871081,92425.0,92409.0,0.010831]
[1768317019119,0.18871081,92425.0,92402.0,0.010832]
[1768317019120,0.09748,92425.0,92402.0,0.010832]
[1768317019429,0.09748,92425.0,92399.0,0.09138345]
[1768317019625,0.007,92423.0,92402.0,0.013831]
[1768317020333,0.010829,92422.0,92402.0,0.003]
[1768317020534,0.01083,92418.0,92402.0,0.003]
[1768317020932,0.09123081,92409.0,92381.0,0.010834]
[1768317021130,0.09123081,92390.0,92373.0,0.10289284]
[1768317021432,0.010831,92406.0,92383.0,0.09788084]
[1768317021633,0.09748,92407.0,92383.0,0.09788084]
[1768317021823,0.18871081,92407.0,92381.0,0.010834]
[1768317022025,0.09123081,92406.0,92376.0,0.09138345]
[1768317022936,0.09123081,92406.0,92386.0,0.010833]
[1768317023533,0.09123081,92406.0,92383.0,0.003]
[1768317024141,0.09123081,92406.0,92384.0,0.010834]
[1768317024437,0.09423081,92406.0,92384.0,0.010834]
[1768317024644,0.09123081,92399.0,92378.0,0.010834]
[1768317024943,0.10206281,92397.0,92376.0,0.004]
[1768317025138,0.14628277,92390.0,92373.0,0.10289284]
[1768317025321,0.09123081,92394.0,92373.0,0.10289284]
[1768317027337,0.14628277,92390.0,92373.0,0.10289284]
[1768317027538,0.14628277,92390.0,92377.0,0.004]
[1768317027740,0.010833,92389.0,92377.0,0.004]
[1768317028038,0.14628277,92390.0,92377.0,0.004]
[1768317028239,0.006,92390.0,92378.0,0.004]